fUSD/lending_fUSD_20250930
["ID","MTS","AMOUNT","RATE_DAILY","PERIOD"]
[388557110,1759240336355,-500.0,0.0002,2]
[388557111,1759240336364,-500.0,0.0002,2]
[388557112,1759240336373,-500.0,0.0002,2]
[388557113,1759240336383,-540.5,0.0002,2]
[388557114,1759240336393,-4690.1,0.0002,2]
[388557115,1759240336402,-500.0,0.0002,2]
[388557116,1759240336412,-3481.91,0.0002,2]
[388557117,1759240336423,-1038.94,0.0002,2]
[388557118,1759240336433,-6488.25,0.0002,2]
[388557119,1759240336444,-3323.26,0.0002,2]
[388557120,1759240336455,-500.0,0.0002,2]
[388557121,1759240336465,-1369.59,0.0002,2]
[388557122,1759240336475,-500.0,0.0002,2]
[388557123,1759240336485,-5530.75,0.0002,2]
[388557124,1759240336494,-1181.95,0.0002,2]
[388557125,1759240336504,-1390.21,0.0002,2]
[388557126,1759240336520,-1361.61,0.0002,2]
[388557127,1759240336531,-500.0,0.0002,2]
[388557128,1759240336540,-500.0,0.0002,2]
[388557129,1759240336549,-5411.44,0.0002,2]
[388557130,1759240336559,-1581.45,0.0002,2]
[388557131,1759240336568,-500.0,0.0002,2]
[388557132,1759240336578,-3964.99,0.0002,2]
[388557133,1759240336588,-3748.58,0.0002,2]
[388557134,1759240336599,-2676.52,0.0002,2]
[388557135,1759240336608,-654.98,0.0002,2]
[388557136,1759240336618,-730.34,0.0002,2]
[388557137,1759240336628,-3552.31,0.0002,2]
[388557138,1759240336638,-2765.4,0.0002,2]
[388557139,1759240336648,-939.77,0.0002,2]
[388557140,1759240336658,-1000.94,0.0002,2]
[388557141,1759240336668,-500.0,0.0002,2]
[388557142,1759240336678,-1934.59,0.0002,2]
[388557143,1759240336687,-491.92954698,0.0002,2]
[388557144,1759240336697,-1474.11,0.0002,2]
[388557145,1759240336707,-552.85,0.0002,2]
[388557146,1759240336717,-500.0,0.0002,2]
[388557147,1759240336728,-511.55,0.0002,2]
[388557148,1759240336739,-511.55,0.0002,2]
[388557149,1759240336749,-2157.39,0.0002,2]
[388557150,1759240336760,-18492.31,0.0002,2]
[388557151,1759240336771,-5681.34,0.0002,2]
[388557152,1759240336782,-500.0,0.0002,2]
[388557153,1759240336793,-500.0,0.0002,2]
[388557154,1759240336804,-509.23,0.0002,2]
[388557155,1759240336815,-1186.56,0.0002,2]
[388557156,1759240336826,-643.10052339,0.0002,2]
[388557157,1759240336836,-500.0,0.0002,2]
[388557158,1759240336847,-541.6,0.0002,2]
[388557159,1759240336857,-500.0,0.0002,2]
[388557160,1759240336866,-500.0,0.0002,2]
[388557161,1759240336876,-1119.61,0.0002,2]
[388557162,1759240336885,-1172.72,0.0002,2]
[388557163,1759240336895,-5357.55,0.0002,2]
[388557164,1759240336904,-583.56,0.0002,2]
[388557165,1759240336915,-3680.77,0.0002,2]
[388557166,1759240336924,-7317.79,0.0002,2]
[388557167,1759240336934,-2723.4,0.0002,2]
[388557168,1759240336943,-500.0,0.0002,2]
[388557169,1759240336953,-1429.01,0.0002,2]
[388557170,1759240336963,-688.57,0.0002,2]
[388557171,1759240336973,-863.38,0.0002,2]
[388557172,1759240336982,-1249.51,0.0002,2]
[388557173,1759240336992,-739.07,0.0002,2]
[388557174,1759240337002,-2415.34,0.0002,2]
[388557175,1759240337011,-505.11,0.0002,2]
[388557176,1759240337021,-3504.09,0.0002,2]
[388557177,1759240337031,-5494.11,0.0002,2]
[388557178,1759240337042,-1836.14,0.0002,2]
[388557179,1759240337054,-500.0,0.0002,2]
[388557180,1759240337066,-995.39,0.0002,2]
[388557181,1759240337076,-6705.33,0.0002,2]
[388557182,1759240337085,-500.0,0.0002,2]
[388557183,1759240337096,-6781.75,0.0002,2]
[388557184,1759240337105,-7000.6,0.0002,2]
[388557185,1759240337114,-4925.05,0.0002,2]
[388557186,1759240337124,-1562.72,0.0002,2]
[388557187,1759240337138,-500.0,0.0002,2]
[388557188,1759240337147,-1497.08,0.0002,2]
[388557189,1759240337156,-8103.56,0.0002,2]
[388557190,1759240337165,-500.0,0.0002,2]
[388557191,1759240337174,-3281.17,0.0002,2]
[388557192,1759240337184,-415.72378253,0.0002,2]
[388557193,1759240337194,-4136.69,0.0002,2]
[388557194,1759240337204,-500.0,0.0002,2]
[388557195,1759240337214,-1715.07,0.0002,2]
[388557196,1759240337224,-500.0,0.0002,2]
[388557197,1759240337235,-5894.74,0.0002,2]
[388557198,1759240337245,-5362.41,0.0002,2]
[388557199,1759240337255,-1341.41,0.0002,2]
[388557200,1759240337269,-2755.02,0.0002,2]
[388557201,1759240337279,-500.0,0.0002,2]
[388557202,1759240337290,-10208.2,0.0002,2]
[388557203,1759240337300,-858.6,0.0002,2]
[388557204,1759240337311,-3373.16,0.0002,2]
[388557205,1759240337321,-647.37,0.0002,2]
[388557206,1759240337332,-1570.13,0.0002,2]
[388557207,1759240337342,-1122.49,0.0002,2]
[388557208,1759240337353,-1556.2,0.0002,2]
[388557209,1759240337362,-500.0,0.0002,2]
[388557210,1759240337371,-3871.47,0.0002,2]
[388557211,1759240337381,-1684.89,0.0002,2]
[388557212,1759240337390,-4000.0,0.0002,4]
[388557213,1759240337399,-931.46,0.0002,2]
[388557214,1759240337411,-500.0,0.0002,2]
[388557215,1759240337422,-324.57796877,0.0002,2]
[388557216,1759240337433,-4011.93,0.0002,2]
[388557217,1759240337444,-500.0,0.0002,2]
[388557218,1759240337453,-500.0,0.0002,2]
[388557219,1759240337463,-500.0,0.0002,2]
[388557220,1759240337473,-12816.21,0.0002,2]
[388557221,1759240337482,-500.0,0.0002,2]
[388557222,1759240337491,-500.0,0.0002,2]
[388557223,1759240337501,-500.0,0.0002,2]
[388557224,1759240337511,-500.0,0.0002,2]
[388557225,1759240337522,-500.0,0.0002,2]
[388557226,1759240337531,-694.15,0.0002,2]
[388557227,1759240337541,-1162.06,0.0002,2]
[388557228,1759240337550,-6873.68,0.0002,2]
[388557229,1759240337559,-500.0,0.0002,2]
[388557230,1759240337571,-2523.64,0.0002,2]
[388557231,1759240337582,-500.0,0.0002,2]
[388557232,1759240337593,-500.0,0.0002,2]
[388557233,1759240337604,-3703.76,0.0002,2]
[388557234,1759240337613,-3826.94,0.0002,2]
[388557235,1759240337623,-895.74,0.0002,2]
[388557236,1759240337633,-2564.83,0.0002,2]
[388557237,1759240337644,-955.85,0.0002,2]
[388557238,1759240337653,-1051.65,0.0002,2]
[388557239,1759240337663,-997.01,0.0002,2]
[388557240,1759240337673,-1238.43,0.0002,2]
[388557241,1759240337682,-1006.62,0.0002,2]
[388557242,1759240337693,-6876.3,0.0002,2]
[388557243,1759240337703,-529.91,0.0002,2]
[388557244,1759240337714,-5950.02,0.0002,2]
[388557245,1759240337724,-1776.53,0.0002,2]
[388557246,1759240337735,-1367.04,0.0002,2]
[388557247,1759240337745,-3828.19,0.0002,2]
[388557248,1759240337754,-500.0,0.0002,2]
[388557249,1759240337764,-9467.31,0.0002,2]
[388557250,1759240337774,-500.0,0.0002,2]
[388557251,1759240337783,-1184.13,0.0002,2]
[388557252,1759240337793,-500.0,0.0002,2]
[388557253,1759240337802,-4922.75,0.0002,2]
[388557254,1759240337811,-500.0,0.0002,2]
[388557255,1759240337820,-426.06571073,0.0002,2]
[388557256,1759240337830,-500.0,0.0002,2]
[388557257,1759240337841,-571.69,0.0002,2]
[388557258,1759240337851,-2070.05,0.0002,2]
[388557259,1759240337861,-500.0,0.0002,2]
[388557260,1759240337871,-500.0,0.0002,2]
[388557261,1759240337880,-500.0,0.0002,2]
[388557262,1759240337890,-5298.65,0.0002,2]
[388557263,1759240337899,-18773.04,0.0002,2]
[388557264,1759240337909,-849.98,0.0002,2]
[388557265,1759240337919,-20867.18,0.0002,2]
[388557266,1759240337928,-4442.33,0.0002,2]
[388557267,1759240337938,-500.0,0.0002,2]
[388557268,1759240337948,-500.0,0.0002,2]
[388557269,1759240337958,-1635.21,0.0002,2]
[388557270,1759240337967,-500.0,0.0002,2]
[388557271,1759240337976,-3515.11,0.0002,2]
[388557272,1759240337985,-680.87,0.0002,2]
[388557273,1759240337995,-732.05,0.0002,2]
[388557274,1759240338004,-500.0,0.0002,2]
[388557275,1759240338014,-500.0,0.0002,2]
[388557276,1759240338023,-500.0,0.0002,2]
[388557277,1759240338033,-500.0,0.0002,2]
[388557278,1759240338044,-3586.23,0.0002,2]
[388557279,1759240338054,-1344.1,0.0002,2]
[388557280,1759240338065,-500.0,0.0002,2]
[388557281,1759240338076,-921.26,0.0002,2]
[388557282,1759240338086,-500.0,0.0002,2]
[388557283,1759240338097,-2248.01,0.0002,2]
[388557284,1759240338108,-3657.67,0.0002,2]
[388557285,1759240338117,-533.92,0.0002,2]
[388557286,1759240338126,-151.73,0.0002,2]
[388557287,1759240338135,-25000.0,0.00020015,2]
[388557288,1759240338146,-587.0,0.00020017,2]
[388557289,1759240338155,-250.0,0.00020021,2]
[388557290,1759240338164,-181.79870319,0.00020027,2]
[388557291,1759240338175,-181.79870318,0.00020027,2]
[388557292,1759240338185,-500.0,0.00020044,2]
[388557293,1759240338194,-500.0,0.00020044,2]
[388557294,1759240338204,-500.0,0.00020044,2]
[388557295,1759240338214,-500.0,0.00020044,2]
[388557296,1759240338225,-500.0,0.00020044,2]
[388557297,1759240338236,-500.0,0.00020044,2]
[388557298,1759240338245,-500.0,0.00020044,2]
[388557299,1759240338256,-500.0,0.00020044,2]
[388557300,1759240338265,-5000.0,0.0002006,2]
[388557301,1759240338276,-185.0,0.00020073,2]
[388557302,1759240338285,-195.40268892,0.00020082,2]
[388557303,1759240338294,-276.40823527,0.00020082,2]
[388557304,1759240338304,-161.02170369,0.00020082,2]
[388557305,1759240338313,-2229.07,0.00020089,2]
[388557306,1759240338323,-5000.0,0.00020099,2]
[388557307,1759240338331,-2000.0,0.0002011,2]
[388557308,1759240338340,-9000.0,0.00020116,2]
[388557309,1759240338352,-151.0,0.00020116,2]
[388557310,1759240338361,-500.0,0.00020127,2]
[388557311,1759240338370,-5000.0,0.00020147,2]
[388557312,1759240338380,-177.9,0.00020149,2]
[388557313,1759240338390,-25000.0,0.00020156,2]
[388557314,1759240338399,-400.0,0.00020158,2]
[388557315,1759240338408,-195.40268892,0.00020164,2]
[388557316,1759240338418,-276.40823527,0.00020164,2]
[388557317,1759240338428,-2351.0,0.00020185,2]
[388557318,1759240338437,-161.02170369,0.00020192,2]
[388557319,1759240338447,-1972.8,0.00020196,2]
[388557320,1759240338456,-1901.48234374,0.000202,2]
[388557321,1759240338466,-150.0,0.000202,2]
[388557322,1759240338476,-214.0,0.000202,2]
[388557323,1759240338487,-197.0,0.000202,2]
[388557324,1759240338497,-193.3,0.00020208,2]
[388557325,1759240338506,-185.0,0.00020227,2]
[388557326,1759240338516,-181.79870319,0.00020247,2]
[388557327,1759240338527,-181.79870318,0.00020247,2]
[388557328,1759240338536,-195.40268892,0.00020247,2]
[388557329,1759240338546,-276.40823527,0.00020247,2]
[388557330,1759240338556,-2388.88,0.00020247,2]
[388557331,1759240338566,-5000.0,0.00020248,2]
[388557332,1759240338575,-5000.0,0.00020251,2]
[388557333,1759240338586,-500.0,0.0002026,2]
[388557334,1759240338595,-3500.0,0.0002026,2]
[388557335,1759240338608,-1505.80093252,0.0002026,2]
[388557336,1759240338618,-494.0,0.00020261,2]
[388557337,1759240338628,-1178.0,0.00020261,2]
[388557338,1759240338638,-451.0,0.00020261,2]
[388557339,1759240338648,-446.0,0.00020261,2]
[388557340,1759240338781,-176.61,0.00020266,2]
[388557341,1759240338791,-750.14216786,0.00020268,2]
[388557342,1759240338801,-1500.0,0.00020268,2]
[388557343,1759240338811,-1500.0,0.00020268,2]
[388557344,1759240338821,-1500.0,0.00020268,2]
[388557345,1759240338830,-195.451848,0.00020268,2]
[388557346,1759240338839,-528.73200569,0.00020268,2]
[388557347,1759240338849,-1255.28457453,0.00020268,2]
[388557348,1759240338859,-1500.0,0.00020268,2]
[388557349,1759240338868,-1500.0,0.00020268,2]
[388557350,1759240338877,-266.46551295,0.00020268,2]
[388557351,1759240338887,-709.3592731,0.00020268,2]
[388557352,1759240338897,-1500.0,0.00020268,2]
[388557353,1759240338906,-329.41569127,0.00020268,2]
[388557354,1759240338916,-1500.0,0.00020268,2]
[388557355,1759240338925,-1500.0,0.00020268,2]
[388557356,1759240338935,-1500.0,0.00020268,2]
[388557357,1759240338944,-1500.0,0.00020268,2]
[388557358,1759240338953,-400.0,0.0002027,2]
[388557359,1759240338963,-700.0,0.0002027,2]
[388557360,1759240338972,-523.47,0.00020273,2]
[388557361,1759240338981,-150.09,0.00020273,2]
[388557362,1759240338991,-939.45,0.00020273,2]
[388557363,1759240339000,-742.62,0.00020273,2]
[388557364,1759240339009,-839.87,0.00020273,2]
[388557365,1759240339018,-699.23,0.00020273,2]
[388557366,1759240339028,-1043.7,0.00020273,2]
[388557367,1759240339037,-1734.33,0.00020273,2]
[388557368,1759240339046,-1038.99,0.00020273,2]
[388557369,1759240339055,-942.79,0.00020273,2]
[388557370,1759240339064,-500.0,0.00020273,2]
[388557371,1759240339073,-1383.29,0.00020273,2]
[388557372,1759240339082,-500.0,0.00020273,2]
[388557373,1759240339091,-2539.98,0.00020273,2]
[388557374,1759240339102,-500.0,0.00020273,2]
[388557375,1759240339111,-777.62,0.00020273,2]
[388557376,1759240339120,-1690.1,0.00020273,2]
[388557377,1759240339129,-1124.22,0.00020273,2]
[388557378,1759240339139,-2279.01,0.00020273,2]
[388557379,1759240339148,-500.0,0.00020273,2]
[388557380,1759240339157,-500.0,0.00020273,2]
[388557381,1759240339166,-572.0,0.00020273,2]
[388557382,1759240339175,-2525.07,0.00020273,2]
[388557383,1759240339184,-500.0,0.00020273,2]
[388557384,1759240339193,-768.79,0.00020273,2]
[388557385,1759240339202,-926.98,0.00020273,2]
[388557386,1759240339212,-900.96,0.00020273,2]
[388557387,1759240339221,-500.0,0.00020273,2]
[388557388,1759240339230,-575.5,0.00020273,2]
[388557389,1759240339239,-593.6,0.00020273,2]
[388557390,1759240339248,-924.04,0.00020273,2]
[388557391,1759240339260,-885.54,0.00020273,2]
[388557392,1759240339271,-1751.25,0.00020273,2]
[388557393,1759240339280,-1751.25,0.00020273,2]
[388557394,1759240339289,-1678.28,0.00020273,2]
[388557395,1759240339298,-500.0,0.00020273,2]
[388557396,1759240339308,-500.0,0.00020273,2]
[388557397,1759240339318,-500.0,0.00020273,2]
[388557398,1759240339327,-500.0,0.00020273,2]
[388557399,1759240339337,-500.0,0.00020273,2]
[388557400,1759240339346,-500.0,0.00020273,2]
[388557401,1759240339357,-500.0,0.00020273,2]
[388557402,1759240339367,-976.58,0.00020273,2]
[388557403,1759240339376,-2413.69,0.00020273,2]
[388557404,1759240339386,-500.0,0.00020273,2]
[388557405,1759240339395,-500.0,0.00020273,2]
[388557406,1759240339405,-622.62861878,0.00020273,2]
[388557407,1759240339414,-943.48,0.00020273,2]
[388557408,1759240339424,-254.88,0.00020273,2]
[388557409,1759240339434,-2013.23,0.00020273,2]
[388557410,1759240339443,-500.0,0.00020273,2]
[388557411,1759240339453,-500.0,0.00020273,2]
[388557412,1759240339462,-500.0,0.00020273,2]
[388557413,1759240339472,-500.0,0.00020273,2]
[388557414,1759240339481,-500.0,0.00020273,2]
[388557415,1759240339491,-797.98,0.00020273,2]
[388557416,1759240339500,-764.73,0.00020273,2]
[388557417,1759240339509,-1232.09,0.00020273,2]
[388557418,1759240339519,-500.0,0.00020273,2]
[388557419,1759240339529,-693.13,0.00020273,2]
[388557420,1759240339538,-500.0,0.00020273,2]
[388557421,1759240339548,-1084.87,0.00020273,2]
[388557422,1759240339557,-585.96,0.00020273,2]
[388557423,1759240339566,-1406.34,0.00020273,2]
[388557424,1759240339575,-500.0,0.00020273,2]
[388557425,1759240339585,-500.0,0.00020273,2]
[388557426,1759240339594,-818.87,0.00020273,2]
[388557427,1759240339606,-500.0,0.00020273,2]
[388557428,1759240339616,-500.0,0.00020273,2]
[388557429,1759240339625,-1793.65,0.00020273,2]
[388557430,1759240339636,-500.0,0.00020273,2]
[388557431,1759240339645,-1043.03,0.00020273,2]
[388557432,1759240339654,-999.57,0.00020273,2]
[388557433,1759240339664,-500.0,0.00020273,2]
[388557434,1759240339674,-915.43,0.00020273,2]
[388557435,1759240339683,-1611.94,0.00020273,2]
[388557436,1759240339693,-1490.93,0.00020273,2]
[388557437,1759240339702,-702.03,0.00020273,2]
[388557438,1759240339711,-1069.66,0.00020273,2]
[388557439,1759240339722,-679.98,0.00020273,2]
[388557440,1759240339731,-720.19,0.00020273,2]
[388557441,1759240339741,-500.0,0.00020273,2]
[388557442,1759240339751,-612.97,0.00020273,2]
[388557443,1759240339762,-718.97,0.00020273,2]
[388557444,1759240339772,-500.0,0.00020273,2]
[388557445,1759240339782,-500.0,0.00020273,2]
[388557446,1759240339792,-500.0,0.00020273,2]
[388557447,1759240339802,-549.25,0.00020273,2]
[388557448,1759240339811,-500.0,0.00020273,2]
[388557449,1759240339821,-1031.1,0.00020273,2]
[388557450,1759240339831,-500.0,0.00020273,2]
[388557451,1759240339841,-723.07,0.00020273,2]
[388557452,1759240339853,-500.0,0.00020273,2]
[388557453,1759240339862,-798.07,0.00020273,2]
[388557454,1759240339872,-500.0,0.00020273,2]
[388557455,1759240339882,-699.79,0.00020273,2]
[388557456,1759240339891,-746.04,0.00020273,2]
[388557457,1759240339901,-534.54,0.00020273,2]
[388557458,1759240339910,-500.0,0.00020273,2]
[388557459,1759240339920,-500.0,0.00020273,2]
[388557460,1759240339930,-500.0,0.00020273,2]
[388557461,1759240339940,-500.0,0.00020273,2]
[388557462,1759240339950,-500.0,0.00020273,2]
[388557463,1759240339960,-500.0,0.00020273,2]
[388557464,1759240339969,-500.0,0.00020273,2]
[388557465,1759240339979,-1901.3,0.00020273,2]
[388557466,1759240339988,-1901.3,0.00020273,2]
[388557467,1759240339998,-996.63,0.00020273,2]
[388557468,1759240340007,-500.0,0.00020273,2]
[388557469,1759240340016,-289.94966763,0.00020273,2]
[388557470,1759240340026,-500.0,0.00020273,2]
[388557471,1759240340035,-500.0,0.00020273,2]
[388557472,1759240340045,-500.0,0.00020273,2]
[388557473,1759240340054,-500.0,0.00020273,2]
[388557474,1759240340064,-500.0,0.00020273,2]
[388557475,1759240340073,-547.29,0.00020273,2]
[388557476,1759240340084,-547.29,0.00020273,2]
[388557477,1759240340093,-500.0,0.00020273,2]
[388557478,1759240340105,-500.0,0.00020273,2]
[388557479,1759240340115,-500.0,0.00020273,2]
[388557480,1759240340125,-500.0,0.00020273,2]
[388557481,1759240340134,-500.0,0.00020273,2]
[388557482,1759240340143,-500.0,0.00020273,2]
[388557483,1759240340153,-500.0,0.00020273,2]
[388557484,1759240340162,-500.0,0.00020273,2]
[388557485,1759240340172,-858.21,0.00020273,2]
[388557486,1759240340181,-822.45,0.00020273,2]
[388557487,1759240340191,-500.0,0.00020273,2]
[388557488,1759240340200,-500.0,0.00020273,2]
[388557489,1759240340210,-680.9,0.00020273,2]
[388557490,1759240340220,-500.0,0.00020273,2]
[388557491,1759240340229,-673.91,0.00020273,2]
[388557492,1759240340238,-500.0,0.00020273,2]
[388557493,1759240340247,-500.0,0.00020273,2]
[388557494,1759240340257,-500.0,0.00020273,2]
[388557495,1759240340266,-500.0,0.00020273,2]
[388557496,1759240340277,-500.0,0.00020273,2]
[388557497,1759240340287,-1312.12,0.00020273,2]
[388557498,1759240340296,-544.11,0.00020273,2]
[388557499,1759240340306,-500.0,0.00020273,2]
[388557500,1759240340315,-676.58,0.00020273,2]
[388557501,1759240340325,-500.0,0.00020273,2]
[388557502,1759240340334,-500.0,0.00020273,2]
[388557503,1759240340344,-556.19945332,0.00020273,2]
[388557504,1759240340356,-820.32,0.00020273,2]
[388557505,1759240340365,-500.0,0.00020273,2]
[388557506,1759240340375,-500.0,0.00020273,2]
[388557507,1759240340384,-500.0,0.00020273,2]
[388557508,1759240340394,-317.207087,0.00020273,2]
[388557509,1759240340403,-527.54,0.00020273,2]
[388557510,1759240340412,-500.0,0.00020273,2]
[388557511,1759240340422,-772.08,0.00020273,2]
[388557512,1759240340431,-985.0,0.00020273,2]
[388557513,1759240340440,-1196.77,0.00020273,2]
[388557514,1759240340450,-1307.17,0.00020273,2]
[388557515,1759240340459,-1307.17,0.00020273,2]
[388557516,1759240340469,-500.0,0.00020273,2]
[388557517,1759240340479,-646.8,0.00020273,2]
[388557518,1759240340488,-619.85,0.00020273,2]
[388557519,1759240340497,-500.0,0.00020273,2]
[388557520,1759240340506,-332.64109914,0.00020273,2]
[388557521,1759240340515,-298.93278116,0.00020273,2]
[388557522,1759240340524,-500.0,0.00020273,2]
[388557523,1759240340534,-500.0,0.00020273,2]
[388557524,1759240340543,-500.0,0.00020273,2]
[388557525,1759240340553,-551.65,0.00020273,2]
[388557526,1759240340563,-500.0,0.00020273,2]
[388557527,1759240340572,-500.0,0.00020273,2]
[388557528,1759240340582,-2533.5,0.00020273,2]
[388557529,1759240340591,-500.0,0.00020273,2]
[388557530,1759240340603,-1570.81,0.00020273,2]
[388557531,1759240340612,-500.0,0.00020273,2]
[388557532,1759240340625,-500.0,0.00020273,2]
[388557533,1759240340635,-500.0,0.00020273,2]
[388557534,1759240340644,-500.0,0.00020273,2]
[388557535,1759240340654,-500.0,0.00020273,2]
[388557536,1759240340664,-500.0,0.00020273,2]
[388557537,1759240340673,-500.0,0.00020273,2]
[388557538,1759240340683,-500.0,0.00020273,2]
[388557539,1759240340693,-500.0,0.00020273,2]
[388557540,1759240340702,-951.58,0.00020273,2]
[388557541,1759240340715,-1000.83,0.00020273,2]
[388557542,1759240340724,-500.0,0.00020273,2]
[388557543,1759240340734,-500.0,0.00020273,2]
[388557544,1759240340744,-500.0,0.00020273,2]
[388557545,1759240340754,-500.0,0.00020273,2]
[388557546,1759240340764,-500.0,0.00020273,2]
[388557547,1759240340774,-980.47,0.00020273,2]
[388557548,1759240340784,-500.0,0.00020273,2]
[388557549,1759240340795,-500.0,0.00020273,2]
[388557550,1759240340804,-500.0,0.00020273,2]
[388557551,1759240340814,-500.0,0.00020273,2]
[388557552,1759240340825,-500.0,0.00020273,2]
[388557553,1759240340835,-620.85,0.00020273,2]
[388557554,1759240340845,-596.97,0.00020273,2]
[388557555,1759240340857,-945.04,0.00020273,2]
[388557556,1759240340866,-500.0,0.00020273,2]
[388557557,1759240340876,-500.0,0.00020273,2]
[388557558,1759240340885,-500.0,0.00020273,2]
[388557559,1759240340895,-1506.46,0.00020273,2]
[388557560,1759240340905,-1892.16,0.00020273,2]
[388557561,1759240340914,-1813.32,0.00020273,2]
[388557562,1759240340923,-500.0,0.00020273,2]
[388557563,1759240340932,-500.0,0.00020273,2]
[388557564,1759240340942,-500.0,0.00020273,2]
[388557565,1759240340951,-554.41,0.00020273,2]
[388557566,1759240340960,-500.0,0.00020273,2]
[388557567,1759240340970,-500.0,0.00020273,2]
[388557568,1759240340980,-500.0,0.00020273,2]
[388557569,1759240340989,-500.0,0.00020273,2]
[388557570,1759240340998,-1125.41,0.00020273,2]
[388557571,1759240341008,-500.0,0.00020273,2]
[388557572,1759240341018,-500.0,0.00020273,2]
[388557573,1759240341027,-819.5,0.00020273,2]
[388557574,1759240341043,-2802.89,0.00020273,2]
[388557575,1759240341052,-500.0,0.00020273,2]
[388557576,1759240341063,-1040.32,0.00020273,2]
[388557577,1759240341073,-1580.78,0.00020273,2]
[388557578,1759240341084,-500.0,0.00020273,2]
[388557579,1759240341095,-500.0,0.00020273,2]
[388557580,1759240341108,-500.0,0.00020273,2]
[388557581,1759240341118,-460.0,0.00020273,2]
[388557582,1759240341127,-1936.29,0.00020273,2]
[388557583,1759240341137,-202.6893724,0.00020273,2]
[388557584,1759240341146,-762.14,0.00020273,2]
[388557585,1759240341156,-500.0,0.00020273,2]
[388557586,1759240341166,-517.44,0.00020273,2]
[388557587,1759240341175,-804.01,0.00020273,2]
[388557588,1759240341184,-500.0,0.00020273,2]
[388557589,1759240341194,-500.0,0.00020273,2]
[388557590,1759240341204,-862.02,0.00020273,2]
[388557591,1759240341214,-501.33641956,0.00020273,2]
[388557592,1759240341224,-500.0,0.00020273,2]
[388557593,1759240341234,-734.2,0.00020273,2]
[388557594,1759240341243,-2536.15,0.00020273,2]
[388557595,1759240341252,-866.59,0.00020273,2]
[388557596,1759240341266,-835.4,0.00020273,2]
[388557597,1759240341276,-718.03,0.00020273,2]
[388557598,1759240341285,-1365.92,0.00020273,2]
[388557599,1759240341296,-500.0,0.00020273,2]
[388557600,1759240341307,-819.73,0.00020273,2]
[388557601,1759240341317,-500.0,0.00020273,2]
[388557602,1759240341327,-500.0,0.00020273,2]
[388557603,1759240341339,-906.15,0.00020273,2]
[388557604,1759240341352,-716.83,0.00020273,2]
[388557605,1759240341362,-500.0,0.00020273,2]
[388557606,1759240341372,-500.0,0.00020273,2]
[388557607,1759240341382,-1159.21,0.00020273,2]
[388557608,1759240341392,-500.0,0.00020273,2]
[388557609,1759240341402,-500.0,0.00020273,2]